bitfinex-derivatives/quotes_BNBF0:USTF0_20250424
["timestamp","ask_amount","ask_price","bid_price","bid_amount"]
[1745494373083,1.27513219,598.54,597.03,4.968]
[1745494373881,0.29121583,598.53,597.03,4.968]
[1745494375792,1.27513219,598.56,597.03,4.968]
[1745494376879,1.27513219,598.35,597.03,4.968]
[1745494378878,1.27513219,598.28,597.03,4.968]
[1745494383001,0.29124751,598.27,597.03,4.968]
[1745494384589,1.27513219,598.52,597.03,4.968]
[1745494384887,0.29121826,598.26,597.03,4.968]
[1745494385187,1.27513219,598.52,597.03,4.968]
[1745494385989,1.27513219,598.5,597.03,4.968]
[1745494388690,1.27513219,598.36,597.03,4.968]
[1745494391190,1.27513219,598.13,597.03,4.968]
[1745494391890,1.56639798,598.13,597.03,4.968]
[1745494393494,1.27513219,598.13,597.03,4.968]
[1745494393791,1.27513219,598.08,597.03,4.968]
[1745494396996,1.27513219,598.05,597.03,4.968]
[1745494399594,1.27513219,598.09,597.03,4.968]
[1745494401695,0.29127554,598.13,597.03,4.968]
[1745494402600,1.27513219,598.29,597.03,4.968]
[1745494404104,0.29124629,598.28,597.03,4.968]
[1745494408605,1.27513219,598.32,597.03,4.968]
[1745494409904,0.29124264,598.31,597.03,4.968]
[1745494411108,1.27513219,598.24,597.03,4.968]
[1745494412807,0.29125239,598.23,597.03,4.968]
[1745494413909,1.27513219,598.15,597.03,4.968]
[1745494415714,1.27513219,598.15,597.03,3.681]
[1745494415909,1.27513219,598.15,597.03,2.322]
[1745494416109,0.29126335,598.14,597.03,1.168]
[1745494416614,1.27513219,598.06,597.03,1.168]
[1745494417514,1.27513219,598.06,596.79,0.29126335]
[1745494417714,1.27513219,598.06,596.8,0.30764609]
[1745494418014,1.27513219,598.06,596.81,0.30764609]
[1745494418214,1.27513219,598.06,596.79,0.29127433]
[1745494418415,1.27513219,598.06,596.8,0.30764629]
[1745494419517,1.27513219,598.1,596.8,0.30764629]
[1745494420917,1.27513219,598.1,596.81,0.30764629]
[1745494421114,1.27513219,598.1,596.62,0.30764629]
[1745494421318,1.27513219,598.1,596.63,0.30764629]
[1745494421518,1.27513219,598.1,596.62,0.30764629]
[1745494421718,1.27513219,598.1,596.63,0.30764629]
[1745494421915,1.27513219,598.1,596.64,0.29132065]
[1745494422118,1.27513219,598.1,596.65,0.30764629]
[1745494423823,1.27513219,598.1,596.61,1.06010008]
[1745494424022,0.29132919,598.09,596.64,0.29132919]
[1745494426623,1.27513219,598.11,596.59,1.06010008]
[1745494426824,1.27513219,598.11,596.6,0.30768387]
[1745494427519,2.16949574,598.67,596.6,0.30768387]
[1745494427520,1.27513219,598.45,596.6,0.30768387]
[1745494427719,1.27513219,598.45,596.32,1.06010008]
[1745494427925,0.29132553,598.44,596.61,0.29132553]
[1745494428225,0.29132553,598.44,596.33,0.30768627]
[1745494428424,0.29132553,598.44,596.32,1.06010008]
[1745494428621,0.29132553,598.44,596.33,0.30768675]
[1745494429627,1.27513219,598.45,596.34,0.29133041]
[1745494429827,1.27513219,598.45,596.35,0.30768675]
[1745494430726,1.27513219,598.45,596.34,0.29133041]
[1745494430927,0.29132797,598.44,596.35,0.30769962]
[1745494432526,1.27513219,598.52,596.35,0.30769962]
[1745494432754,1.27513219,598.52,596.26,0.30769962]
[1745494432927,0.29130724,598.43,596.34,0.29130724]
[1745494433124,1.27513219,598.52,596.35,0.30769962]
[1745494433322,1.27513219,598.52,596.26,0.30769962]
[1745494433521,1.27513219,598.52,596.27,0.30769962]
[1745494433725,1.27513219,598.52,596.26,0.30769962]
[1745494433921,0.29131821,598.51,596.28,0.30769962]
[1745494434122,0.29131821,598.51,596.29,0.30769962]
[1745494434322,0.29131821,598.51,596.28,0.30769962]
[1745494435729,1.27513219,598.75,596.28,0.30769962]
[1745494435970,1.27513219,598.75,596.21,0.30769962]
[1745494436222,1.27513219,598.75,596.22,0.30769962]
[1745494436526,1.27513219,598.75,596.2,1.06010008]
[1745494436725,1.27513219,598.75,596.21,0.30767253]
[1745494436923,0.29129627,598.74,596.23,0.29129627]
[1745494437127,1.56642846,598.74,596.24,0.30767253]
[1745494437424,1.56642846,598.74,596.25,1.548]
[1745494437727,1.56642846,598.74,596.26,0.30767253]
[1745494438630,1.27513219,598.74,596.25,1.548]
[1745494438829,1.27513219,598.74,596.26,0.30767358]
[1745494439125,0.29129139,598.73,596.26,0.30767358]
[1745494439329,1.27513219,598.7,596.27,0.30767358]
[1745494439524,1.27513219,598.7,596.28,0.30767358]
[1745494439828,1.27513219,598.7,596.29,0.30767358]
[1745494440024,1.27513219,598.7,596.25,1.548]
[1745494440229,1.27513219,598.7,596.26,0.30767649]
[1745494441330,1.27513219,598.7,596.27,0.30767286]
[1745494441528,1.27513219,598.7,596.26,0.30767286]
[1745494441826,0.29129627,598.69,596.27,0.30767286]
[1745494442030,1.27513219,598.47,596.33,1.06010008]
[1745494442230,1.27513219,598.47,596.34,0.30767286]
[1745494444332,1.27513219,598.47,596.33,1.06010008]
[1745494444529,1.27513219,598.47,596.34,0.30767488]
[1745494444728,1.27513219,598.55,596.34,0.30767488]
[1745494445026,0.29131456,598.46,596.35,1.44767488]
[1745494445231,1.27513219,598.55,596.36,0.30767488]
[1745494446030,0.29129749,598.54,596.37,1.099]
[1745494446230,0.29129749,598.54,596.38,0.30767488]
[1745494447431,0.29129749,598.54,596.37,1.099]
[1745494447635,0.29129749,598.54,596.38,0.30766385]
[1745494448437,0.29129749,598.54,596.39,1.287]
[1745494448634,0.29129749,598.54,596.4,0.30766385]
[1745494448937,0.29129749,598.54,596.39,1.287]
[1745494449138,0.29129749,598.54,596.4,0.30766216]
[1745494450840,1.27513219,598.59,596.4,0.30766216]
[1745494451940,0.29128773,598.58,596.4,0.30766216]
[1745494452143,1.27513219,598.38,596.4,0.30766216]
[1745494453336,1.27513219,598.38,596.41,0.30766216]
[1745494453541,1.27513219,598.38,596.42,0.30766216]
[1745494453840,1.27513219,598.38,596.43,0.30766216]
[1745494454041,0.29131334,598.37,596.44,0.30766216]
[1745494454237,1.27513219,598.25,596.47,1.06010008]
[1745494454441,1.27513219,598.25,596.48,0.30766216]
[1745494454642,1.27513219,598.25,596.49,0.30766216]
[1745494454842,1.27513219,598.25,596.5,0.30765928]
[1745494455036,1.27513219,598.25,596.51,0.30765928]
[1745494455237,1.27513219,598.25,596.52,0.30765928]
[1745494455442,1.27513219,598.25,596.53,0.30765928]
[1745494455839,1.27513219,598.25,596.47,1.06010008]
[1745494455840,1.27513219,598.25,596.54,0.30765928]
[1745494456138,1.27513219,598.25,596.55,0.30765928]
[1745494456341,1.27513219,598.25,596.56,0.30765928]
[1745494456641,2.16949574,598.87,596.39,1.287]
[1745494456642,1.27513219,598.02,596.59,1.06010008]
[1745494456838,1.27513219,598.02,596.6,0.3076707]
[1745494461443,1.27513219,598.02,596.59,1.06010008]
[1745494461669,1.27513219,598.07,596.6,0.30761945]
[1745494461838,1.27513219,598.07,596.61,0.30761945]
[1745494462143,1.27513219,598.07,596.62,0.30761945]
[1745494462340,1.27513219,598.07,596.58,0.30761945]
[1745494462537,1.27513219,598.07,596.59,0.30761945]
[1745494462741,1.27513219,598.07,596.58,0.30761945]
[1745494462941,1.27513219,598.07,596.59,0.30761945]
[1745494463138,1.27513219,598.07,596.57,1.06010008]
[1745494463139,1.27513219,598.07,596.58,0.30761945]
[1745494463340,1.27513219,598.07,596.59,0.30761945]
[1745494463543,1.27513219,598.56,596.58,0.30761945]
[1745494463766,1.27513219,598.56,596.59,0.30761945]
[1745494463946,0.29130724,598.22,596.54,0.29130724]
[1745494464249,1.27513219,598.56,596.55,0.30761945]
[1745494464546,1.27513219,598.56,596.54,0.29130724]
[1745494464745,1.27513219,598.56,596.55,0.30761514]
[1745494465145,1.27513219,598.56,596.56,0.30761514]
[1745494465345,1.27513219,598.56,596.57,0.30761514]
[1745494465547,1.27513219,598.56,596.58,0.30761514]
[1745494465743,0.29125117,598.55,596.55,0.30761514]
[1745494465941,0.29125117,598.55,596.56,0.30761514]
[1745494466145,0.29125117,598.55,596.56,0.29125117]
[1745494466344,0.29125117,598.55,596.57,0.30761453]
[1745494466644,1.27513219,598.31,596.57,1.36771461]
[1745494466846,1.27513219,598.31,596.58,0.30761453]
[1745494468850,1.27513219,598.24,596.6,1.06010008]
[1745494469076,1.27513219,598.24,596.61,0.30761453]
[1745494469851,1.27513219,598.24,596.6,1.06010008]
[1745494470051,1.27513219,598.24,596.61,0.30761345]
[1745494470953,1.27513219,598.24,596.6,1.06010008]
[1745494471151,1.27513219,598.24,596.61,0.30761291]
[1745494471552,1.27513219,598.24,596.62,0.30761291]
[1745494471759,1.27513219,598.24,596.63,0.30761291]
[1745494471954,1.27513219,598.24,596.64,0.30761291]
[1745494472254,1.27513219,598.27,596.65,0.30761291]
[1745494472453,1.27513219,598.27,596.59,0.30761291]
[1745494472652,1.27513219,598.27,596.6,0.30761081]
[1745494472954,0.29128164,598.26,596.61,0.30761081]
[1745494473149,0.29128164,598.26,596.59,0.30761081]
[1745494474054,0.29128164,598.26,596.6,1.064]
[1745494474254,0.29128164,598.26,596.61,0.30761081]
[1745494474753,1.27513219,598.27,596.61,0.30761081]
[1745494475053,0.2912792,598.25,596.61,0.30761081]
[1745494475498,1.27513219,598.22,596.61,0.30761081]
[1745494475853,1.27513219,598.22,596.62,0.30761519]
[1745494476057,1.27513219,598.22,596.61,0.30761519]
[1745494476259,1.27513219,598.22,596.62,0.30761519]
[1745494476562,1.27513219,598.22,596.63,0.30761519]
[1745494476759,1.27513219,598.22,596.61,0.30761519]
[1745494476959,1.27513219,598.22,596.62,0.30761519]
[1745494477156,1.27513219,598.22,596.61,0.30761519]
[1745494479060,1.56641749,598.22,596.61,0.30761519]
[1745494480558,1.56641749,598.22,596.6,1.3552853]
[1745494480764,1.27513219,598.2,596.61,0.30761713]
[1745494482160,1.27513219,598.2,596.6,2.41538781]
[1745494482364,1.27513219,598.2,596.61,0.30762103]
[1745494482959,0.29128773,598.22,596.61,0.30762103]
[1745494483766,1.27513219,598.23,596.61,0.30762103]
[1745494483981,0.29129017,598.22,596.61,0.30762103]
[1745494485467,0.29129017,598.22,596.6,0.29129017]
[1745494485666,0.29129017,598.22,596.61,0.30766083]
[1745494486668,1.27513219,598.52,596.61,0.30766083]
[1745494486862,1.27513219,598.52,596.62,0.30766083]
[1745494487062,1.27513219,598.52,596.46,0.30766083]
[1745494487364,1.27513219,598.52,596.47,1.235]
[1745494487662,1.27513219,598.52,596.48,0.30766083]
[1745494487963,0.2912792,598.51,596.48,0.59894003]
[1745494488168,1.27513219,598.45,596.49,0.30766083]
[1745494489872,1.27513219,598.43,596.48,0.30766083]
[1745494490069,1.27513219,598.43,596.49,0.30766083]
[1745494491969,1.27513219,598.42,596.49,0.30766083]
[1745494492763,1.27513219,598.42,596.48,0.30766083]
[1745494492968,0.29131456,598.41,596.48,0.30766083]
[1745494493868,0.29131456,598.41,596.48,0.59897661]
[1745494494066,0.29131456,598.41,596.49,0.30766083]
[1745494494572,1.27513219,598.23,596.49,0.30766083]
[1745494495071,1.27513219,598.23,596.48,0.29131578]
[1745494495270,1.27513219,598.23,596.49,0.30771493]
[1745494495773,1.27513219,598.23,596.5,1.339]
[1745494496072,1.27513219,598.23,596.51,0.30771493]
[1745494496733,1.27513219,598.23,596.5,1.339]
[1745494496873,1.27513219,598.23,596.51,0.3077145]
[1745494497175,1.27513219,598.12,596.51,0.3077145]
[1745494500381,1.27513219,598.19,596.51,0.3077145]
[1745494502020,0.29135236,598.18,596.51,0.3077145]
[1745494503683,1.27513219,598.06,596.51,0.3077145]
[1745494504182,1.27513219,598.06,596.52,0.30773095]
[1745494504482,1.27513219,598.06,596.53,0.30773095]
[1745494506183,1.27513219,598.04,596.53,0.30773095]
[1745494507283,1.27513219,598.04,596.52,1.432]
[1745494507582,1.27513219,598.04,596.53,0.30773207]
[1745494508079,0.29137798,598.03,596.53,0.30773207]
[1745494508882,0.29137798,598.03,596.54,0.30773061]
[1745494509078,0.29137798,598.03,596.53,0.30773061]
[1745494509284,0.29137798,598.03,596.54,0.30773061]
[1745494509583,0.29137798,598.03,596.55,0.30773061]
[1745494509882,0.29137798,598.03,596.56,0.30773061]
[1745494510082,0.29137798,598.03,596.53,0.30773061]
[1745494510382,0.29137798,598.03,596.54,0.30773061]
[1745494510582,1.27513219,598.12,596.55,0.30773061]
[1745494510785,1.27513219,598.12,596.53,0.30773061]
[1745494510979,1.27513219,598.12,596.55,1.288]
[1745494511184,0.29136822,598.11,596.56,0.30773061]
[1745494512083,0.29136822,598.11,596.57,0.30773129]
[1745494512283,0.29136822,598.11,596.56,0.30773129]
[1745494512483,0.29136822,598.11,596.57,0.30773129]
[1745494512684,0.29136822,598.11,596.56,0.30773129]
[1745494512886,0.29136822,598.11,596.55,1.288]
[1745494513187,0.29136822,598.11,596.56,0.30773037]
[1745494513486,0.29136822,598.11,596.55,1.288]
[1745494513682,1.27513219,598.32,596.55,1.288]
[1745494513884,0.29134748,598.1,596.55,1.288]
[1745494514085,1.27513219,598.32,596.55,1.288]
[1745494514387,1.27513219,598.28,596.55,1.288]
[1745494515082,1.27513219,598.28,596.55,2.187]
[1745494515386,0.29135236,598.27,596.55,2.187]
[1745494515648,0.29135236,598.27,596.56,0.30774751]
[1745494516686,1.27513219,598.28,596.56,0.30774751]
[1745494517085,1.27513219,598.23,596.56,0.30774751]
[1745494518888,1.27513219,598.23,596.56,1.78174751]
[1745494519088,1.27513219,598.23,596.57,0.30774751]
[1745494519689,1.27513219,598.19,596.57,0.30774751]
[1745494522591,1.27513219,598.18,596.57,0.30774751]
[1745494522987,1.56649675,598.18,596.56,1.76536456]
[1745494523216,1.56649675,598.18,596.57,0.30774896]
[1745494525693,1.27513219,597.95,596.57,0.30774896]
[1745494526194,1.27513219,597.95,596.56,1.76536456]
[1745494526495,1.27513219,597.95,596.57,0.30774926]
[1745494526993,1.27513219,597.95,596.56,1.76536456]
[1745494528596,1.27513219,597.86,596.56,1.474]
[1745494529090,0.29142434,597.85,596.56,1.474]
[1745494531593,1.27513219,598.66,596.56,1.474]
[1745494532097,0.29131212,597.91,596.56,2.924]
[1745494532297,1.27513219,598.66,596.56,2.924]
[1745494532598,1.27513219,598.82,596.56,2.924]
[1745494532993,0.29131212,598.65,596.56,2.924]
[1745494533297,1.27513219,598.82,596.56,2.924]
[1745494533492,0.29130236,598.64,596.56,2.924]
[1745494533996,1.27513219,598.82,596.56,2.924]
[1745494534200,0.29130236,598.63,596.56,2.924]
[1745494534398,1.27513219,598.39,596.56,2.924]
[1745494536801,1.27513219,598.25,596.56,2.924]
[1745494538000,0.29136212,598.24,596.56,2.924]
[1745494538496,0.29136212,598.24,596.57,0.30776929]
[1745494539001,0.29136212,598.24,596.58,0.3077706]
[1745494539201,0.29136212,598.24,596.57,0.3077706]
[1745494539598,1.27513219,598.2,596.57,0.3077706]
[1745494540396,1.27513219,598.2,596.56,1.45]
[1745494540900,0.29136822,598.19,596.57,0.30778861]
[1745494541702,0.29136822,598.19,596.58,1.208]
[1745494541903,1.27513219,597.96,596.59,0.30778861]
[1745494542614,1.27513219,597.96,596.6,1.29]
[1745494543402,1.27513219,597.96,596.61,0.30778551]
[1745494544102,0.29139261,597.95,596.61,0.30778551]
[1745494544604,1.27513219,597.78,596.61,0.30778551]
[1745494545302,1.27513219,597.78,596.6,1.29]
[1745494545504,1.27513219,597.78,596.61,0.30778406]
[1745494546904,1.27513219,597.78,596.6,1.29]
[1745494547105,1.27513219,597.78,596.61,0.30777988]
[1745494547306,1.27513219,597.74,596.61,0.30777988]
[1745494550011,1.27513219,597.82,596.61,0.30777988]
[1745494551709,1.27513219,597.82,596.6,1.29]
[1745494551909,1.27513219,597.82,596.61,0.30777789]
[1745494553306,1.27513219,597.82,596.6,1.29]
[1745494553506,1.27513219,597.82,596.61,0.3077737]
[1745494553910,1.27513219,597.83,596.62,0.3077737]
[1745494554112,1.27513219,597.83,596.58,1.208]
[1745494554417,1.27513219,597.83,596.59,0.30777931]
[1745494554709,1.27513219,597.83,596.6,0.945]
[1745494555114,1.27513219,597.83,596.61,0.30777931]
[1745494555912,1.27513219,597.83,596.62,1.367]
[1745494557215,1.27513219,597.86,596.62,1.367]
[1745494558714,1.27513219,597.86,596.63,0.30777747]
[1745494559014,1.27513219,597.86,596.62,1.367]
[1745494559916,1.27513219,597.84,596.62,1.367]
[1745494563017,1.27513219,597.9,596.62,1.367]
[1745494565316,1.27513219,597.88,596.62,1.367]
[1745494567516,0.29139993,597.91,596.63,1.23]
[1745494567722,1.27513219,597.97,596.63,1.23]
[1745494568122,1.27513219,597.97,596.64,1.035]
[1745494569022,0.29139871,597.96,596.64,1.035]
[1745494570723,1.27513219,598.16,596.64,1.035]
[1745494570919,0.29139017,597.95,596.64,1.035]
[1745494571321,1.27513219,598.16,596.64,1.035]
[1745494572122,0.29140237,598.15,596.64,1.035]
[1745494572418,0.29140237,598.15,596.65,1.094]
[1745494572624,1.27513219,597.71,596.65,1.094]
[1745494575826,0.29144142,597.81,596.65,1.094]
[1745494579633,1.27513219,598.11,596.65,1.094]
[1745494579934,0.29139261,597.81,596.65,1.094]
[1745494580234,1.27513219,598.02,596.65,1.094]
[1745494581033,0.29140359,598.01,596.65,1.094]
[1745494582937,1.27513219,598.26,596.65,1.094]
[1745494584037,0.29137432,598.25,596.65,1.094]
[1745494584937,0.29137432,598.25,596.65,2.335]
[1745494585841,1.27513219,598.3,596.65,2.335]
[1745494586937,1.27513219,598.24,596.65,2.335]
[1745494589243,1.27513219,597.94,596.65,2.335]
[1745494590143,0.29141335,597.93,596.65,2.335]
[1745494591743,1.27513219,597.94,596.65,2.335]
[1745494592139,1.27513219,597.93,596.65,2.335]
[1745494592576,1.27513219,597.93,596.65,3.559]
[1745494593044,0.29146461,597.92,596.65,3.54531391]
[1745494593436,0.29146461,597.92,596.65,2.465]
[1745494594842,1.27513219,598.21,596.65,2.465]
[1745494595043,0.29145362,597.91,596.65,2.465]
[1745494595344,1.27513219,598.21,596.65,2.465]
[1745494596040,0.29144874,598.2,596.65,2.465]
[1745494596747,1.27513219,597.98,596.65,2.465]
[1745494598948,0.29148658,597.97,596.65,2.465]
[1745494599650,1.27513219,597.82,596.65,2.465]
[1745494601650,1.27513219,598.45,596.65,2.465]
[1745494601950,0.29149635,597.81,596.65,2.465]
[1745494602249,1.27513219,598.45,596.65,2.465]
[1745494603352,1.27513219,598.45,596.65,3.601]
[1745494603752,0.29141946,598.44,596.65,3.601]
[1745494606457,1.27513219,597.79,596.65,3.601]
[1745494606756,1.27513219,597.79,596.65,1.136]
[1745494606956,1.27513219,597.79,595.55,1.06010008]
[1745494607153,1.27513219,597.79,595.56,0.30798121]
[1745494607354,1.27513219,597.79,595.57,0.30798121]
[1745494607559,1.27513219,597.79,595.58,0.30798121]
[1745494607858,1.27513219,597.79,595.59,0.30798121]
[1745494608060,0.29163437,597.78,595.6,0.30798121]
[1745494608262,0.29163437,597.78,595.61,0.30798121]
[1745494608453,0.29163437,597.78,595.62,0.30798121]
[1745494608653,0.29163437,597.78,595.63,0.30798121]
[1745494608854,0.29163437,597.78,595.64,0.30798121]
[1745494609069,0.29163437,597.78,595.59,0.29163437]
[1745494609070,1.27513219,597.69,595.65,0.30798121]
[1745494609253,1.27513219,597.69,595.66,0.30798121]
[1745494609458,1.27513219,597.69,595.67,0.30798121]
[1745494609760,1.27513219,597.69,595.68,0.30798121]
[1745494609961,1.27513219,597.69,595.69,0.30798499]
[1745494610157,1.27513219,597.69,595.7,0.30798499]
[1745494610360,1.27513219,597.69,595.71,0.30798499]
[1745494610556,1.27513219,597.69,595.72,0.30798499]
[1745494610860,1.27513219,597.69,595.73,0.30798499]
[1745494611160,0.29165148,597.68,595.74,0.30798499]
[1745494611361,0.29165148,597.68,595.75,0.30798499]
[1745494611676,1.27513219,597.55,595.76,0.30798021]
[1745494611861,1.27513219,597.55,595.65,0.30798021]
[1745494612062,1.27513219,597.55,595.66,0.30798021]
[1745494612258,1.27513219,597.55,595.67,0.30798021]
[1745494612464,1.27513219,597.55,595.68,0.30798021]
[1745494612657,1.27513219,597.55,595.69,0.30798021]
[1745494612862,1.27513219,597.55,595.7,0.30798021]
[1745494613062,1.27513219,597.55,595.52,0.30798021]
[1745494613362,1.27513219,597.55,595.53,0.30798021]
[1745494613562,1.27513219,597.55,595.52,0.30798021]
[1745494613783,1.27513219,597.55,595.54,0.30798021]
[1745494613963,0.29163681,597.66,595.55,0.30798021]
[1745494614165,0.29163681,597.66,595.53,0.29163681]
[1745494614166,0.29163681,597.66,595.54,0.30798021]
[1745494614660,0.29163681,597.66,595.53,0.29163681]
[1745494614865,0.29163681,597.66,595.54,0.30793707]
[1745494617761,0.29163681,597.66,595.53,0.29163681]
[1745494617962,0.29163681,597.66,595.54,0.30794062]
[1745494618563,0.29163681,597.66,595.55,0.30794062]
[1745494618768,1.27513219,598.43,595.56,0.30794062]
[1745494619068,1.27513219,598.43,595.57,0.30794062]
[1745494619267,1.27513219,598.43,595.58,0.30794062]
[1745494619469,1.27513219,598.35,595.59,0.30794062]
[1745494619669,1.27513219,598.35,595.6,0.30794062]
[1745494619869,1.27513219,598.35,595.61,0.30794062]
[1745494620071,0.29153908,598.34,595.62,0.30794062]
[1745494620265,0.29153908,598.34,595.63,0.30794062]
[1745494620465,0.29153908,598.34,595.64,0.30794062]
[1745494620664,0.29153908,598.34,595.65,0.30794062]
[1745494620864,0.29153908,598.34,595.55,0.29153908]
[1745494621168,0.29153908,598.34,595.56,0.30794287]
[1745494621365,0.29153908,598.34,595.57,0.30794287]
[1745494621570,0.29153908,598.34,595.58,0.30794287]
[1745494621767,1.27513219,598.35,595.59,0.30794287]
[1745494621973,1.27513219,598.35,595.6,0.30794287]
[1745494622265,1.27513219,598.35,595.51,1.505]
[1745494622266,1.27513219,598.02,595.66,1.06010008]
[1745494622470,1.27513219,598.02,595.67,0.30794287]
[1745494622773,1.27513219,598.02,595.68,0.30794287]
[1745494622970,0.29157817,598.01,595.69,0.30794287]
[1745494623265,0.29157817,598.01,595.7,0.30794287]
[1745494623569,0.29157817,598.01,595.71,0.30794287]
[1745494623767,0.29157817,598.01,595.72,0.30794287]
[1745494624071,0.29157817,598.01,595.73,0.30794287]
[1745494624274,0.29157817,598.01,595.66,1.06010008]
[1745494624275,0.29157817,598.01,595.74,0.30794287]
[1745494624574,0.29157817,598.01,595.75,0.30794287]
[1745494624773,1.27513219,598.02,595.76,0.30794287]
[1745494624973,1.27513219,598.02,595.77,0.30794287]
[1745494625272,1.27513219,597.88,595.78,0.30794282]
[1745494625468,1.27513219,597.88,595.79,0.30794282]
[1745494625671,1.27513219,597.88,595.8,0.30794282]
[1745494625873,1.27513219,597.88,595.81,0.30794282]
[1745494626073,1.27513219,597.88,595.82,0.30794282]
[1745494626273,1.27513219,597.88,595.83,0.30794282]
[1745494626472,1.27513219,597.88,595.84,0.30794282]
[1745494626772,1.27513219,597.88,595.85,0.30794282]
[1745494626972,1.27513219,597.88,595.86,0.30794282]
[1745494627176,1.27513219,597.88,595.75,0.30794282]
[1745494627370,1.27513219,597.88,595.76,0.30794282]
[1745494627571,1.27513219,597.78,595.86,1.06010008]
[1745494627777,1.27513219,597.78,595.87,0.30794282]
[1745494628175,0.29158305,597.77,595.87,0.30794282]
[1745494630279,0.29158305,597.77,595.86,0.30794282]
[1745494630473,0.29158305,597.77,595.87,0.30794282]
[1745494630675,1.27513219,597.81,595.86,0.30794282]
[1745494630879,1.27513219,597.81,595.87,0.30794282]
[1745494631178,1.27513219,597.81,595.88,0.30794282]
[1745494631373,1.27513219,597.81,595.86,0.30794282]
[1745494631574,1.27513219,597.81,595.85,1.06010008]
[1745494631905,1.27513219,597.81,595.86,0.3079427]
[1745494632074,0.29158061,597.8,595.86,0.3079427]
[1745494633179,0.29158061,597.8,595.87,0.30794301]
[1745494633380,0.29158061,597.8,595.88,0.30794301]
[1745494633580,0.29158061,597.8,595.84,1.06010008]
[1745494633581,0.29158061,597.8,595.85,0.30794301]
[1745494633781,1.27513219,597.84,595.86,0.30794301]
[1745494634008,1.27513219,597.84,595.85,0.30794301]
[1745494634177,0.29157817,597.79,595.86,0.30794301]
[1745494634377,0.29157817,597.79,595.85,0.30794301]
[1745494634575,0.29157817,597.79,595.86,0.30794301]
[1745494634779,0.29157817,597.79,595.85,0.30794301]
[1745494634979,0.29157817,597.79,595.86,0.30794301]
[1745494635182,0.29157817,597.79,595.85,1.36804309]
[1745494635381,0.29157817,597.79,595.86,0.30794301]
[1745494636780,1.27513219,597.82,595.86,0.30794301]
[1745494637284,1.27513219,597.86,595.89,1.06010008]
[1745494637478,1.27513219,597.86,595.9,0.30794301]
[1745494638084,0.29155496,597.85,595.9,0.30794301]
[1745494639388,0.29155496,597.85,595.9,1.79594301]
[1745494639582,0.29155496,597.85,595.91,0.30794301]
[1745494639782,1.27513219,597.86,595.91,0.30794301]
[1745494640677,1.27513219,597.79,595.95,1.06010008]
[1745494640881,1.27513219,597.79,595.96,0.30794301]
[1745494641079,1.27513219,597.79,595.95,1.06010008]
[1745494641283,1.27513219,597.79,595.96,0.30792092]
[1745494642683,1.27513219,597.79,595.95,1.06010008]
[1745494642884,1.27513219,597.78,595.96,0.30792796]
[1745494643983,0.2915574,597.77,595.96,0.30792796]
[1745494645190,1.27513219,597.69,596.0,1.06010008]
[1745494645391,1.27513219,597.69,596.01,0.30792796]
[1745494645986,0.29156229,597.68,596.01,0.30792796]
[1745494646719,0.29156229,597.68,596.0,1.06010008]
[1745494646886,0.29156229,597.68,596.02,0.30791884]
[1745494647087,0.29156229,597.68,596.03,0.30791884]
[1745494647386,0.29156229,597.68,596.04,0.30791884]
[1745494647592,0.29156229,597.68,596.05,0.30791995]
[1745494647794,0.29156229,597.68,596.02,1.06010008]
[1745494647795,1.27513219,597.67,596.02,1.06010008]
[1745494647992,1.27513219,597.67,596.03,0.30791995]
[1745494649194,0.29156229,597.66,596.03,0.30791995]
[1745494651896,1.27513219,597.69,596.03,0.30791995]
[1745494652097,0.29155985,597.65,596.03,0.30791995]
[1745494653598,0.29155985,597.65,596.02,0.30791995]
[1745494653794,0.29155985,597.65,596.04,0.30791995]
[1745494653992,0.29155985,597.65,596.05,0.30791995]
[1745494654192,0.29155985,597.65,596.02,0.30791995]
[1745494654394,0.29155985,597.65,596.03,0.30791995]
[1745494654597,0.29155985,597.65,596.04,0.30791995]
[1745494654797,1.27513219,597.71,596.02,0.30791995]
[1745494654998,1.27513219,597.71,596.03,0.30791995]
[1745494655298,0.29155862,597.64,596.02,0.29155862]
[1745494655498,1.27513219,597.71,596.03,0.30791171]
[1745494656261,0.2915574,597.7,596.03,0.30791171]
[1745494656500,0.2915574,597.7,596.03,1.30891171]
[1745494656702,0.2915574,597.7,596.04,0.30791171]
[1745494657900,1.27513219,597.94,596.04,0.30791171]
[1745494658103,0.29152809,597.69,596.04,0.30791171]
[1745494658302,1.27513219,597.93,596.04,0.30791171]
[1745494659098,0.29152931,597.92,596.04,0.30791171]
[1745494660706,1.27513219,597.98,596.04,0.30791171]
[1745494661003,0.29152931,597.91,596.04,0.30791171]
[1745494661302,1.27513219,597.98,596.04,0.30791171]
[1745494661698,1.27513219,597.98,596.05,0.30791421]
[1745494661900,1.27513219,597.98,596.06,0.30791421]
[1745494662097,0.29152321,597.97,596.04,0.30791421]